Cogmind - Beta 17 @@@ ROGUE MODE // 2026.08.13 @ 19:08:34 Player: Ev Result: Destroyed by Y-54 Guardian with Flak Gun Performance ------------- Evolutions (0) 0 Regions Visited (3) 600 Robots Destroyed (45) 225 Value Destroyed (818) 818 Prototype IDs (8) 160 Alien Tech Used (0) 0 Bonus (5161) 5161 TOTAL SCORE: 6964 Bonus ------- High Alert Combat Kills 11 Prayed to X0-1V1 5000 Major X0-1V1 Interference 150 Cogmind --------- Core Integrity 0/180 Matter 194/300 Energy 98/100 System Corruption 0% Temperature Cool (76) Movement Rolling (110) Location -7/Recycling Parts ------- > --- POWER (1) -------- (None) > --- PROPULSION (3) --- Subdweller Monowheel > --- UTILITY (2) ------ Visual Processing Unit > --- WEAPON (2) ------- Barrage Gun > --- INVENTORY (5) ---- Weight Redist. System Propulsion Shielding Grenade Launcher Datajack Peak State ------------ > --- POWER ------------ Light Ion Engine > --- PROPULSION ------- Flight Unit Flight Unit Flight Unit > --- UTILITY ---------- Visual Processing Unit X0-1V1's Piety Tracker > --- WEAPON ----------- Barrage Gun Makeshift Axe > --- INVENTORY -------- Heat Sink Weight Redist. System Propulsion Shielding Grenade Launcher Datajack [Rating: 26] Favorites ----------- Power Light Ion Engine Engine Light Ion Engine Propulsion Flight Unit Wheel Compact Wheel Flight Unit Flight Unit Utility Propulsion Shielding Device X0-1V1's Piety Tracker Storage Small Storage Unit Processor Targeting Computer Protection Propulsion Shielding Weapon Beam Cannon Energy Gun Small Laser Energy Cannon Beam Cannon Ballistic Gun Barrage Gun Ballistic Cannon Battle Cannon Launcher Grenade Launcher Slashing Weapon Makeshift Axe Build | -11 -10 -10 -7 ------- Run | Yrd Mat Sub Rec Slots Evolved . | . . . . Power . | . . . . Propulsion . | . . . . Utility . | . . . . Weapon . | . . . . Parts Attached 28 | 7 16 4 1 Power 4 | 1 3 . . Engine 4 | 1 3 . . Core . | . . . . Reactor . | . . . . Propulsion 7 | 2 4 . 1 Treads . | . . . . Leg . | . . . . Wheel 3 | 2 . . 1 Hover . | . . . . Flight 4 | . 4 . . Utility 8 | 2 5 1 . Device 3 | 1 1 1 . Storage 1 | 1 . . . Processor 3 | . 3 . . Hackware . | . . . . Protection 1 | . 1 . . Artifact . | . . . . Weapon 9 | 2 4 3 . Energy Gun 3 | 2 1 . . Energy Cannon 2 | . 2 . . Ballistic Gun 1 | . . 1 . Ballistic Cannon 1 | . . 1 . Launcher 1 | . 1 . . Special Weapon . | . . . . Impact Weapon . | . . . . Slashing Weapon 1 | . . 1 . Piercing Weapon . | . . . . Special Melee Weapon . | . . . . Unidentified Prototypes 1 | . 1 . . Parts Lost 8 | . 1 1 6 Power 2 | . 1 . 1 Propulsion 3 | . . . 3 Utility 2 | . . 1 1 Weapon 1 | . . . 1 Highest Loss Streak 6 | . 1 1 6 To Critical Strikes . | . . . . Average Backups 4 | 3 5 5 5 Power . | 1 . . . Propulsion . | . 1 . 1 Utility 1 | . 1 2 2 Weapon 1 | 1 2 1 1 Tool/Special . | . . . . Unused Backups 11 | . 8 1 2 Power . | . . . . Propulsion 1 | . 1 . . Utility 6 | . 4 1 1 Weapon 3 | . 3 . . Tool/Special 1 | . . . 1 Average Slot Usage (%) 98 | . 99 98 93 Engine 13 | . 13 12 12 Wheel 4 | . 5 . . Flight 26 | . 23 37 31 Device 4 | . 2 10 12 Storage 2 | . 2 . . Processor 12 | . 13 12 12 Protection 6 | . 8 . . Energy Gun 11 | . 15 . . Energy Cannon 10 | . 10 12 . Ballistic Gun 2 | . . 8 12 Launcher 1 | . 2 . . Peak Build Rating 26 | 7 21 26 24 Average Rating 11 | 5 9 21 14 On Entrance 13 | . 7 21 24 Avg Prop Armor Cover (%) . | . . . . Naked Turns . | . . . . Heaviest Build 15 | 15 15 10 10 Greatest Support 32 | 32 32 12 12 Greatest Overweight (x) 1 | . 1 . . Average Overweight (x) . | . . . . Largest Inventory Capacity 8 | 8 8 5 5 Average Capacity 5 | 7 5 5 5 Most Carried 8 | 5 8 5 5 Average Carried 4 | 3 5 4 4 Final Capacity 8 | 8 5 5 5 Final Carried 5 | 5 5 5 4 Class Distribution -------------------- 100% | Mutant Dominant Class ---------------- Mutant | -10/Materials Mutant | -10/Subcaves Mutant | -7/Recycling Resources | -11 -10 -10 -7 ----------- Run | Yrd Mat Sub Rec Matter Collected 890 | 270 450 170 . Remotely 105 | 105 . . . Salvage Created 1007 | 215 682 110 . Parts 87 | 16 62 9 . Haulers Intercepted 2 | . 2 . . Recyclers Shooed . | . . . . Parts Field Recycled . | . . . . Retrieved Matter . | . . . . Parts Self-Destructed 9 | . . 9 . Prevented . | . . . . Parts Restored . | . . . . Kills | -11 -10 -10 -7 ------- Run | Yrd Mat Sub Rec Combat Hostiles Destroyed 23 | . 20 3 . Guns 3 | . 3 . . Cannons 7 | . 5 2 . AOE 13 | . 12 1 . Classes Destroyed 9 | 3 5 1 . Worker 7 | 2 5 . . Builder 2 | . 2 . . Tunneler 5 | 5 . . . Hauler 2 | . 2 . . Recycler 1 | 1 . . . Turret 2 | . . 2 . Watcher 3 | . 3 . . Swarmer 10 | . 9 1 . Grunt 13 | . 11 2 . Best Kill Streak 6 | 4 6 2 . Combat Bots Only 5 | . 5 2 . Max Kills in Single Turn 4 | 1 4 1 . Gunslinging . | . . . . Exploded 3 | . 3 1 . Melee . | . . . . Uniques/NPCs Destroyed . | . . . . Combat | -11 -10 -10 -7 -------- Run | Yrd Mat Sub Rec Hostile Shots Fired 170 | . 49 49 72 Missed 76 | . 25 27 24 Hits 94 | . 24 22 48 Projectile 94 | . 24 22 48 Critical Strikes 1 | . 1 . . Damage Taken 849 | . 354 155 340 Core 250 | . 86 66 98 Absorbed by Shields . | . . . . Redirected to Shielding 6 | . 6 . . Core Remaining (%) 100 | 100 . . . Volleys Fired 99 | 13 63 17 6 Largest 2 | 2 2 2 2 Hottest 120 | 90 110 120 61 Shots Fired 180 | 26 111 33 10 Gun 102 | 26 57 13 6 Cannon 58 | . 35 19 4 Launcher 20 | . 19 1 . Special . | . . . . Kinetic 33 | . . 23 10 Thermal 108 | 13 86 9 . Explosive 20 | . 19 1 . Electromagnetic 19 | 13 6 . . Robot Hit Streak 18 | 12 11 18 12 Robot Miss Streak 3 | 1 3 3 . Penetration Max . | . . . . Secondary Targets . | . . . . Shots Hit Robots 90 | 18 47 15 10 Core Hits 63 | 8 45 8 2 Critical Kills . | . . . . Critical Parts Destroyed . | . . . . Critical Strikes . | . . . . Melee Attacks . | . . . . Impact . | . . . . Slashing . | . . . . Piercing . | . . . . Sneak Attacks . | . . . . Combat Hostiles . | . . . . Follow-up Attacks . | . . . . Damage Inflicted 2356 | 359 1505 317 175 Guns 740 | 250 284 114 92 Cannons 512 | . 278 151 83 Explosions 1104 | 109 943 52 . Melee . | . . . . Ramming . | . . . . Kinetic 388 | . . 213 175 Thermal 830 | 195 583 52 . Explosive 781 | . 729 52 . Electromagnetic 357 | 164 193 . . Impact . | . . . . Slashing . | . . . . Piercing . | . . . . Highest Corruption . | . . . . Average Corruption . | . . . . Corruption Purged . | . . . . Corruption Blocked . | . . . . Overload Shots . | . . . . Overflow Damage 20 | 1 13 6 . Projectiles . | . . . . Explosions 20 | 1 13 6 . Melee . | . . . . Knockbacks . | . . . . Impact . | . . . . Kinetic . | . . . . Secondary . | . . . . Self-Inflicted Damage 100 | . 100 . . Shots 4 | . 4 . . Rammed . | . . . . Targets Rammed . | . . . . Kicked . | . . . . Crushed . | . . . . Highest Temperature 278 | 210 278 28 84 Average Temperature 73 | 72 79 14 50 Received Heat Transfer 357 | . 129 126 102 Effects 2 | 1 1 . . Energy Bleed 2 | 1 1 . . Siege Activations . | . . . . Martial Activations . | . . . . Shielding Activations . | . . . . Robots Disrupted 1 | . 1 . . Combat Hostiles . | . . . . Robots Corrupted . | . . . . Combat Hostiles . | . . . . Parts Fried 2 | 1 1 . . Impact Corruptions . | . . . . Robots Melted . | . . . . Combat Hostiles . | . . . . Parts Melted . | . . . . Heat Transferred 1759 | 359 1289 111 . Parts Sabotaged . | . . . . Parts Stolen . | . . . . Parts Stripped . | . . . . Power Chain Reactions 5 | 3 2 . . Alert | -11 -10 -10 -7 ------- Run | Yrd Mat Sub Rec Maximum Alert Level 2 | . 2 . . Low Security (%) 41 | 100 29 . 100 Level 1 39 | . 47 . . Level 2 18 | . 22 . . Level 3 . | . . . . Level 4 . | . . . . Level 5 . | . . . . High Security . | . . . . Max Security . | . . . . Peak Influence 480 | 15 480 . 118 Initial 118 | . 3 . 118 Average 232 | 3 274 . 90 Influence Increases 1121 | 40 941 140 . Destroy 0b10 Robot/C 500 | . 400 100 . Destroy 0b10 Robot/NC 100 | 40 60 . . Destroy Leader 110 | . 100 10 . Successful Hack 42 | . 42 . . Select Force Hacks 30 | . 30 . . Disable Machine 120 | . 120 . . Destroy Structure 129 | . 129 . . Partial Spotted 30 | . 30 . . Lose Combat Pursuer 60 | . 30 30 . Influence Decreases 1063 | 35 505 333 190 Entered New Map 345 | . 2 213 130 Time Decay 488 | 35 343 110 . Lost Part 80 | . 10 10 60 Purge Threat 150 | . 150 . . Squads Dispatched 6 | . 6 . . Investigation 6 | . 6 . . Extermination . | . . . . Reinforcement . | . . . . Assault . | . . . . Garrison . | . . . . Intercept . | . . . . Searches Triggered . | . . . . Construction Impeded . | . . . . Haulers Reinforced . | . . . . Active Scanning Responses . | . . . . Cargo Convoy Interrupts . | . . . . Stealth | -11 -10 -10 -7 --------- Run | Yrd Mat Sub Rec Distress Signals 1 | . 1 . . Communications Jammed . | . . . . Distress Signals . | . . . . Times Spotted 35 | . 23 10 2 Peak Tracking Total 6 | . 5 6 2 Tactical Retreats 2 | . 1 1 . Traps | -11 -10 -10 -7 ------- Run | Yrd Mat Sub Rec Traps Triggered 2 | . 2 . . Indirectly . | . . . . Trap Hack Attempts . | . . . . Triggered . | . . . . Disarmed . | . . . . Reprogrammed . | . . . . Reused . | . . . . Traps Extracted . | . . . . Installed . | . . . . Triggered . | . . . . Machines | -11 -10 -10 -7 ---------- Run | Yrd Mat Sub Rec Machines Disabled 10 | . 8 2 . Max in Single Turn 2 | . 2 1 . Machines Repaired . | . . . . Machines Dismantled . | . . . . Machines Sabotaged . | . . . . Overloaded Fab Kills . | . . . . Hacking | -11 -10 -10 -7 --------- Run | Yrd Mat Sub Rec Machines Accessed 11 | . 9 2 . Terminals 8 | . 8 . . Fabricators . | . . . . Repair Stations . | . . . . Recycling Units 1 | . 1 . . Scanalyzers . | . . . . Garrison Access . | . . . . Total Hacks 50 | . 47 3 . Successful 33 | . 30 3 . Failed 17 | . 17 . . Catastrophic 1 | . 1 . . Database Lockouts . | . . . . Manual 32 | . 32 . . Terminals 41 | . 41 . . Fabricators . | . . . . Repair Stations . | . . . . Recycling Units 6 | . 6 . . Scanalyzers . | . . . . Garrison Access . | . . . . Terminal Hacks 17 | . 14 3 . Record 1 | . . 1 . Part Schematic 1 | . 1 . . Prototype ID Bank 5 | . 5 . . Open Door 1 | . . 1 . Branch Access Points 1 | . 1 . . Terminal Index 2 | . 2 . . Alert Level 1 | . 1 . . Unreport Threat 1 | . 1 . . Locate Traps 2 | . 2 . . Zone Layout 1 | . 1 . . Release Object 1 | . . 1 . Fabricator Hacks . | . . . . Repair Station Hacks . | . . . . Recycling Unit Hacks 3 | . 3 . . Process 1 | . 1 . . Report Inventory 2 | . 2 . . Scanalyzer . | . . . . Garrison Access Hacks . | . . . . Unauthorized Hacks 13 | . 13 . . Terminals 12 | . 12 . . Track 3 | . 3 . . Botnet 8 | . 8 . . Operators 1 | . 1 . . Fabricators . | . . . . Repair Stations . | . . . . Recycling Units 1 | . 1 . . Tunnel 1 | . 1 . . Scanalyzers . | . . . . Garrison Access . | . . . . Data Cores Recovered . | . . . . Used . | . . . . Hacking Detections 9 | . 9 . . Full Trace Events 7 | . 7 . . Feedback Events . | . . . . Feedback Blocked . | . . . . Robot Schematics Acquired . | . . . . Robots Built . | . . . . Authchips . | . . . . Time . | . . . . Total Robot Build Rating . | . . . . Part Schematics Acquired 1 | . 1 . . Parts Built . | . . . . Authchips . | . . . . Time . | . . . . Total Part Build Rating . | . . . . Part Studies Acquired . | . . . . Parts Repaired . | . . . . Time . | . . . . Parts Recycled . | . . . . Recycled Matter 38 | . 38 . . Retrieved Matter . | . . . . Retrieved Components . | . . . . Parts Scanalyzed . | . . . . Part Schematics Acquired . | . . . . Parts Damaged . | . . . . Bothacking | -11 -10 -10 -7 ------------ Run | Yrd Mat Sub Rec Used RIF Installer . | . . . . Robots Hacked . | . . . . Non-combat . | . . . . Combat . | . . . . Robot Hacks Applied . | . . . . Relay Couplers Released . | . . . . Fabnet Peak Effective % . | . . . . Robots Rewired . | . . . . Allies Hacked . | . . . . Hacks Repelled . | . . . . Allies | -11 -10 -10 -7 -------- Run | Yrd Mat Sub Rec Total Allies . | . . . . Largest Group . | . . . . Highest-Rated Group . | . . . . Highest-Rated Ally . | . . . . Total Orders . | . . . . Ally Attacks . | . . . . Total Damage . | . . . . Kills . | . . . . Allies Corrupted . | . . . . Allies Melted . | . . . . X0-1V1 Amusement Gains 34 | . 24 10 . Good Acts 3 | . 2 1 . Bad Acts 5 | . 2 2 1 Intel | -11 -10 -10 -7 ------- Run | Yrd Mat Sub Rec Active Infowar (turns) 291 | . 50 225 16 Optics 291 | . 50 225 16 Robot Analysis Total . | . . . . Derelict Logs Recovered 1 | . . 1 . Drone Launches . | . . . . Drone Recoveries . | . . . . Exploration | -11 -10 -10 -7 ------------- Run | Yrd Mat Sub Rec Turns Passed 1158 | 133 784 225 16 Spaces Moved 1442 | 73 954 414 1 Core 4 | 4 . . . Treads . | . . . . Legs . | . . . . Wheels 151 | 69 82 . . Hover . | . . . . Flight 1287 | . 872 414 1 Fastest Speed 34 | 50 34 34 34 Average Speed 45 | 97 45 34 34 Slowest Speed 117 | 100 117 34 34 Overloaded Moves . | . . . . Propulsion Burnouts . | . . . . Robots Hopped 6 | . 6 . . Potential Cave-ins . | . . . . Cave-ins Triggered . | . . . . Exploration Rate (%) 36 | 5 99 38 2 Regions Visited 3 Branch Regions 2 Pre-discovered Areas 2 | . 1 1 . Known Exits Taken . | . . . . Unknown Exits Taken 3 | 1 1 1 . Scrap Searched . | . . . . Spaces Dug . | . . . . Terrain Destroyed 157 | 10 138 9 . Melee . | . . . . Projectile 1 | . . 1 . AOE 156 | 10 138 8 . Terrain Rammed . | . . . . Walls Destroyed . | . . . . Machines Disabled . | . . . . Actions | -11 -10 -10 -7 --------- Run | Yrd Mat Sub Rec Total 1762 | 109 1179 466 8 Wait 121 | 5 94 22 . Move 1427 | 72 941 413 1 Hop 6 | . 6 . . Pick Up 31 | 12 17 2 . Fast Attach 9 | . 5 4 . Attach 15 | 7 7 . 1 Detach 2 | . 1 1 . Swap 25 | . 24 1 . Drop 26 | . 21 5 . Fire 99 | 13 63 17 6 Melee . | . . . . Ram . | . . . . Kick . | . . . . Crush . | . . . . Escape Stasis . | . . . . Rewire . | . . . . Trap . | . . . . Miscellaneous 1 | . . 1 . Route ------- -11/Scrapyard -10/Materials (discovered 5 exits: *Mat x3 / *Min / *Sub) -10/Subcaves (discovered 2 exits: [*Rec] / [*Scr]) -7/Recycling History --------- Turn | Location | Event 9 | -11/Scrapyard | Discovered new exit (range 16) 134 | -11/Scrapyard | Entered Materials 303 | -10/Materials | Build established: Mutant 442 | -10/Materials | Discovered new exit (range 9) 471 | -10/Materials | Identified exit to Mines 478 | -10/Materials | Identified exit to Materials 655 | -10/Materials | Discovered exit to Materials (range 15) 775 | -10/Materials | Discovered new exit (range 16) 780 | -10/Materials | Prayed at D.C.S.S. Altar Unit 834 | -10/Materials | Derelicts attacked the area 849 | -10/Materials | Propulsion slot count permanently improved by X0-1V1 (+1) 898 | -10/Materials | Discovered exit to Materials (range 8) 918 | -10/Materials | Entered Subcaves 919 | -10/Subcaves | Approached by a straggling Scientist 936 | -10/Subcaves | Learned location of Mines (-9) 943 | -10/Subcaves | Released subatomizers from SUBCON Basin 981 | -10/Subcaves | Ranged accuracy permanently improved by X0-1V1 (+7%; -70 max core) 987 | -10/Subcaves | Shifting Twisted Machinery released Barrage Gun 1005 | -10/Subcaves | Shifting Twisted Machinery released Flamer 1075 | -10/Subcaves | Shifting Twisted Machinery released Sub. Monowheel 1085 | -10/Subcaves | Shifting Twisted Machinery released Battle Cannon 1106 | -10/Subcaves | Discovered new exit (range 16) 1143 | -10/Subcaves | Entered Recycling 1148 | -7/Recycling | Core integrity fell below 50% 1157 | -7/Recycling | Core integrity fell below 20% 1159 | -7/Recycling | Destroyed by Y-54 Guardian with Flak Gun Last Messages --------------- 01134_ Acquired 5 matter. 01136_ Acquired 17 matter. 01136_ Acquired 3 matter. X0-1V1's Piety Tracker suddenly appears amidst shimmering waves of color. 01139_ Acquired X0-1V1's Piety Tracker. 01142_ Acquired 8 matter. LOCATION=UNKNOWN GOAL=ESCAPE 01144_ Y-54 Guardian springs to life. 01147_ Flight Unit destroyed. 01149_ X0-1V1: "There's a penalty for shooting from the hip 'round these parts." (-10% ranged accuracy) 01150_ Lgt. Ion Engine destroyed. 01150_ X0-1V1's Piety Tracker destroyed. 01153_ Flight Unit destroyed. 01154_ Battle Cannon destroyed. 01156_ Flight Unit destroyed. 01159_ X0-1V1 guffaws! Map ----- +----------------------------------------------------+ | ?????????????????????????????????????????????????? | | ?????????????????????????????????????????????????? | | ?????????????????????????????????????????????????? | | ?????????????????????????????????????????????????? | | ?????????????????????????????????????????????????? | | ?????????????????????????????????????????????????? | | ?????????????????????????????????????????????????? | | ?????????????????????????????????????????????????? | | ?????????????????????????????????????????????????? | | ?????????????????????????????????????????????????? | | ?????????????????????????????????????????????????? | | ?????????????????????????????????????????????????? | | ?????????????????????????????????????????????????? | | ?????????????????????????????????????????????????? | | ?????????????????????????????????????????????????? | | ?????????????????????????????????????????????????? | | ?????????????????????????????????????????????????? | | ?????????????????????????????????????????????????? | | ?????????????????????????????????????????????????? | | ?????????????????????????????????????????????????? | | ?????????????????????????????????????????????????? | | ?????????????????????????????????????????????????? | | ????????????????????????#####????????????????????? | | ????????????????????????# #????????????????????? | | ???????????????????????## #????????????????????? | | ???????????????????????#Y@ #????????????????????? | | ???????????????????????## #????????????????????? | | ????????????????????????#%% #????????????????????? | | ????????????????????????# Y ???????????????????? | | ???????????????????????? # [??????????????????? | | ???????????????????????? ####?????????????????? | | ???????????????????????"" #????????????????????? | | ???????????????????????"" #????????????????????? | | ???????????????????????"" ????????????????????? | | ?????????????????????? ????????????????????? | | ??????????????????????? #???????????????????? | | ???????????????????????? #???????????????????? | | ???????????????????????? #???????????????????? | | ????????????????????????## ###???????????????????? | | ?????????????????????????? #?????????????????????? | | ??????????????????????????+??????????????????????? | | ?????????????????????????????????????????????????? | | ?????????????????????????????????????????????????? | | ?????????????????????????????????????????????????? | | ?????????????????????????????????????????????????? | | ?????????????????????????????????????????????????? | | ?????????????????????????????????????????????????? | | ?????????????????????????????????????????????????? | | ?????????????????????????????????????????????????? | | ?????????????????????????????????????????????????? | +----------------------------------------------------+ Best States ------------- Heat Dissipation 25 Energy Generation 10 Energy Capacity 250 Matter Stores 300 Matter Capacity 300 Sight Range 18 Terrain Scan Density 10 Propulsion Shielding 33 Evasion (%) 63 Targeting Accuracy 5 Item Schematics ----------------- Flight Unit | -10/Materials | Hacked Robot Schematics ------------------ None Fabricated ------------ Nothing Repaired ---------- Nothing Studied --------- None Alien Tech Used ----------------- None Achievements -------------- None Challenges ------------ None Game ------ Seed HardlightSegregatorGuard Manual? 0 Play Time 00:27:08 Cumulative 83.2 hours Start 2026.08.13 @ 17:33:11 End 2026.08.13 @ 19:08:34 Sessions 1 Manual Loads 0 Difficulty Rogue Special Mode None Game No. 143 Rogue 143 Adventurer 0 Explorer 0 Win Type - Total 0 Types 0/0/0/0/0/0/0/0/0/0 Lore% 27 Gallery% 35 Achievement% 28 Wizard Run 0 Options --------- Layout 1 ASCII 0 Keyboard 0 Movement Mouse Keybinds 0 Fullscreen 1 Font 24/Smallcaps Map View 50x35 Zoom Use 0% Tactical HUD 1 Map Filters NONE Filters NONE Steam 1 RUN: d49b942f-ed7d-4cde-a260-9f0028564e61